Cogmind - Beta 15 @@@ ROGUE MODE // 2025.05.28 @ 22:26:02 Player: Duduxx Result: Self-destructed Performance ------------- Evolutions (5) 2500 Regions Visited (10) 2000 Robots Destroyed (94) 470 Value Destroyed (4613) 4613 Prototype IDs (11) 220 Alien Tech Used (0) 0 Bonus (1917) 1917 TOTAL SCORE: 11720 Bonus ------- High Alert Combat Kills 590 Follower Combat Kills 427 Entered Garrisons 400 Used RIF Installer 500 Cogmind --------- Core Integrity 83/1000 Matter 280/300 Energy 99/100 System Corruption 20% Temperature Cool (0) Movement Core (50) Location -5/Extension Parts ------- > --- POWER (2) -------- (None) > --- PROPULSION (4) --- (None) > --- UTILITY (9) ------ Cloaking Device Relay Coupler [NC] (30) Relay Coupler [Demolisher] (25) > --- WEAPON (2) ------- (None) > --- INVENTORY (5) ---- Light Ion Engine Carbon-fiber Leg Large Storage Unit Relay Coupler [Sentry] (25) Relay Coupler [Heavy] (14) Peak State ------------ > --- POWER ------------ Improved Deuterium Engine Light Fission Core > --- PROPULSION ------- Carbon-fiber Leg Carbon-fiber Leg Improved Carbon-fiber Leg > --- UTILITY ---------- High-capacity Storage Unit Advanced Weight Redist. System Advanced Terrain Scan Processor Advanced Targeting Computer Advanced Targeting Computer Transmission Jammer Hacking Suite Makeshift System Shield > --- WEAPON ----------- Flak Gun Coil Gun > --- INVENTORY -------- Light Nuclear Core Light Nuclear Core Light Nuclear Core Improved Deuterium Engine Advanced Treads Carbon-fiber Leg Wheel Large Storage Unit Advanced Weight Redist. System Relay Coupler [NC] Relay Coupler [Swarmer] Relay Coupler [Grunt] Relay Coupler [Sentry] Relay Coupler [Sentry] Relay Coupler [Sentry] Relay Coupler [Demolisher] Relay Coupler [Heavy] Coil Gun Coil Gun Makeshift Spear [Rating: 59] Favorites ----------- Power Light Nuclear Core Engine Improved Deuterium Engine Power Core Light Nuclear Core Propulsion Carbon-fiber Leg Treads Light Treads Leg Carbon-fiber Leg Wheel Wheel Utility High-capacity Storage Unit Device Improved Heat Sink Storage High-capacity Storage Unit Processor Advanced Targeting Computer Hackware Makeshift System Shield Protection Improved Medium Armor Plating Weapon Coil Gun Energy Gun Gatling Laser Energy Cannon Subdweller Beam Cannon Ballistic Gun Coil Gun Ballistic Cannon Gauss Cannon Piercing Weapon Makeshift Spear Build | -11 -10 -10 -10 -8 -7 -7 -6 -5 -5 -5 ------- Run | Yrd Mat Min Sub Mat Fac Gar Fac Fac Gar Ext Slots Evolved 10 | . . . . 4 2 . 2 2 . . Power 1 | . . . . 1 . . . . . . Propulsion 2 | . . . . 1 . . . 1 . . Utility 7 | . . . . 2 2 . 2 1 . . Weapon . | . . . . . . . . . . . Parts Attached 118 | 9 2 . 13 22 2 24 29 2 14 1 Power 24 | 1 . . 3 5 . 6 6 . 3 . Engine 12 | 1 . . 3 2 . 2 3 . 1 . Core 12 | . . . . 3 . 4 3 . 2 . Reactor . | . . . . . . . . . . . Propulsion 38 | 4 . . 3 6 . 9 12 1 3 . Treads 4 | 2 . . . . . 1 1 . . . Leg 23 | . . . 1 6 . 7 6 . 3 . Wheel 11 | 2 . . 2 . . 1 5 1 . . Hover . | . . . . . . . . . . . Flight . | . . . . . . . . . . . Utility 33 | 2 2 . 3 4 2 5 7 1 6 1 Device 12 | 1 . . 2 2 . 2 3 1 . 1 Storage 3 | 1 2 . . . . . . . . . Processor 5 | . . . . 1 . 1 3 . . . Hackware 8 | . . . 1 1 . . . . 6 . Protection 5 | . . . . . 2 2 1 . . . Artifact . | . . . . . . . . . . . Weapon 23 | 2 . . 4 7 . 4 4 . 2 . Energy Gun 2 | 1 . . . . . 1 . . . . Energy Cannon 3 | . . . 2 1 . . . . . . Ballistic Gun 13 | 1 . . 2 2 . 2 4 . 2 . Ballistic Cannon 4 | . . . . 3 . 1 . . . . Launcher . | . . . . . . . . . . . Special Weapon . | . . . . . . . . . . . Impact Weapon . | . . . . . . . . . . . Slashing Weapon . | . . . . . . . . . . . Piercing Weapon 1 | . . . . 1 . . . . . . Special Melee Weapon . | . . . . . . . . . . . Unidentified Prototypes . | . . . . . . . . . . . Corrupted Parts 1 | . . . . . . 1 . . . . System Corruption 2 | . . . . . . 2 . . . . Parts Lost 83 | . . . 6 10 . 22 17 . 28 . Power 19 | . . . 1 3 . 6 5 . 4 . Propulsion 23 | . . . 2 3 . 6 5 . 7 . Utility 21 | . . . 1 . . 5 3 . 12 . Weapon 20 | . . . 2 4 . 5 4 . 5 . Highest Loss Streak 28 | . . . 4 4 . 4 8 . 28 . To Critical Strikes 1 | . . . . . . . . . 1 . Average Backups 11 | 2 4 7 6 10 12 12 17 13 14 5 Power 1 | . 1 2 1 1 1 1 1 . 1 1 Propulsion 2 | 1 2 2 2 3 4 2 3 3 3 1 Utility 4 | . . 2 2 2 4 3 9 9 8 3 Weapon 3 | . 1 1 . 3 3 4 3 1 1 . Tool/Special . | . . . . . . . . . . . Unused Backups 7 | . 2 . . 1 . 1 . . . 3 Power 1 | . 1 . . . . . . . . . Propulsion 2 | . . . . . . 1 . . . 1 Utility 3 | . 1 . . . . . . . . 2 Weapon 1 | . . . . 1 . . . . . . Tool/Special . | . . . . . . . . . . . Average Slot Usage (%) 91 | . 100 100 86 83 87 95 93 89 80 12 Engine 6 | . 14 14 12 6 7 3 4 11 4 . Core 6 | . . . . 5 7 9 6 . 2 . Treads 2 | . 28 28 2 . . . . . . . Leg 13 | . . . 6 19 23 17 16 . . . Wheel 3 | . . . 9 . . 2 2 17 16 . Device 8 | . 14 14 7 8 . 8 9 5 7 1 Storage 8 | . 14 14 12 8 7 7 6 5 4 . Processor 8 | . . . . 5 7 8 20 17 14 . Hackware 12 | . . . 11 11 15 15 13 11 11 11 Protection 2 | . . . . . 2 5 . 5 3 . Energy Gun 3 | . 14 14 1 . . 3 . . . . Energy Cannon 1 | . . . 12 3 . . . . . . Ballistic Gun 7 | . 14 14 9 5 7 4 12 11 8 . Ballistic Cannon 3 | . . . . 7 7 4 . . . . Peak Build Rating 59 | 9 9 9 32 43 41 49 59 48 54 12 Average Rating 36 | 5 9 9 21 36 37 41 52 44 42 8 On Entrance 25 | . 9 9 9 30 36 41 49 44 48 7 Naked Turns . | . . . . . . . . . . . Heaviest Build 75 | 13 48 48 64 67 71 74 70 71 75 1 Greatest Support 70 | 40 40 40 55 70 42 43 62 46 55 3 Greatest Overweight (x) 6 | . 1 1 4 1 1 6 3 2 2 . Average Overweight (x) 1 | . . 1 1 . 1 1 1 1 . . Largest Inventory Capacity 20 | 8 20 20 20 20 20 20 20 20 20 5 Average Capacity 19 | 7 10 20 20 20 20 20 20 20 18 5 Most Carried 20 | 4 7 7 9 13 12 18 20 13 19 5 Average Carried 11 | 2 4 7 6 10 11 12 17 13 14 5 Final Capacity 20 | 8 20 20 20 20 20 20 20 20 5 5 Final Carried 16 | 4 7 7 9 12 10 16 13 13 5 5 Class Distribution -------------------- 58% | Scavenger-Mutant 23% | Mutant 17% | Hacker-Mutant Dominant Class ---------------- Mutant | -10/Materials Mutant | -10/Mines Mutant | -10/Subcaves Scavenger-Mutant | -8/Materials Hacker-Mutant | -7/Factory Scavenger-Mutant | -7/Garrison Scavenger-Mutant | -6/Factory Scavenger-Mutant | -5/Factory Scavenger-Mutant | -5/Garrison Mutant | -5/Extension Resources | -11 -10 -10 -10 -8 -7 -7 -6 -5 -5 -5 ----------- Run | Yrd Mat Min Sub Mat Fac Gar Fac Fac Gar Ext Matter Collected 3261 | 221 104 11 225 612 . 1184 524 100 280 . Remotely 166 | . . . . . . . . 10 156 . Salvage Created 3774 | 76 89 89 193 942 . 1044 718 134 489 . Parts 190 | 6 6 4 11 57 . 46 31 2 27 . Haulers Intercepted 2 | . 1 . . . . . 1 . . . Recyclers Shooed 2 | . . . . 1 . . 1 . . . Parts Field Recycled . | . . . . . . . . . . . Retrieved Matter . | . . . . . . . . . . . Parts Self-Destructed 5 | . . . 5 . . . . . . . Prevented . | . . . . . . . . . . . Kills | -11 -10 -10 -10 -8 -7 -7 -6 -5 -5 -5 ------- Run | Yrd Mat Min Sub Mat Fac Gar Fac Fac Gar Ext Combat Hostiles Destroyed 82 | . 2 2 4 23 . 31 10 . 10 . Melee 4 | . . . . 2 . . . . 2 . Guns 39 | . 2 2 3 3 . 11 10 . 8 . Cannons 37 | . . . 1 17 . 19 . . . . Classes Destroyed 15 | 2 2 1 1 5 . 1 3 . . . Worker 3 | . . . . . . . 3 . . . Builder 1 | . . . . . . . 1 . . . Tunneler 1 | 1 . . . . . . . . . . Hauler 2 | . 1 . . . . . 1 . . . Recycler 4 | 1 . . . 1 . . 1 1 . . Watcher 1 | . . . . 1 . . . . . . Swarmer 18 | . 2 . . 2 . 7 3 . 4 . Grunt 29 | . . 2 . 10 . 10 3 . 4 . Brawler 2 | . . . . . . 1 . . 1 . Sentry 15 | . . . . 5 . 10 . . . . Specialist 3 | . . . . 2 . 1 . . . . Hunter 8 | . . . . 3 . 1 3 . 1 . Programmer 1 | . . . . . . . 1 . . . Heavy 2 | . . . . 1 . 1 . . . . Subdweller 4 | . . . 4 . . . . . . . Best Kill Streak 7 | 1 2 2 1 4 . 4 7 1 4 . Combat Bots Only 4 | . 2 2 1 3 . 4 4 . 4 . Max Kills in Single Turn 2 | 1 1 1 1 1 . 2 1 1 1 . Gunslinging . | . . . . . . . . . . . Exploded . | . . . . . . . . . . . Melee 1 | . . . . 1 . . . . 1 . Uniques/NPCs Destroyed . | . . . . . . . . . . . Combat | -11 -10 -10 -10 -8 -7 -7 -6 -5 -5 -5 -------- Run | Yrd Mat Min Sub Mat Fac Gar Fac Fac Gar Ext Hostile Shots Fired 930 | . 24 14 53 164 . 327 167 . 181 . Missed 292 | . 10 4 17 53 . 110 44 . 54 . Hits 638 | . 14 10 36 111 . 217 123 . 127 . Melee 7 | . . . . . . 1 . . 6 . Projectile 631 | . 14 10 36 111 . 216 123 . 121 . Critical Strikes 19 | . . . . 5 . 4 5 . 5 . Damage Taken 10169 | . 118 134 796 1925 . 2506 2095 . 2595 . Core 2429 | . 32 . 110 388 . 373 609 . 917 . Absorbed by Shields . | . . . . . . . . . . . Ignored by Resistances 124 | . . . . . . . . . 124 . Core Remaining (%) 49 | 100 . . 43 29 . 46 28 . . . Volleys Fired 342 | 6 11 9 37 73 . 119 47 2 38 . Largest 2 | 2 2 2 2 2 . 2 2 2 2 . Hottest 160 | 60 60 60 160 160 . 120 60 60 60 . Shots Fired 598 | 12 22 18 63 133 . 209 75 4 62 . Gun 374 | 12 22 18 52 33 . 96 75 4 62 . Cannon 224 | . . . 11 100 . 113 . . . . Launcher . | . . . . . . . . . . . Special . | . . . . . . . . . . . Kinetic 456 | 6 11 9 41 94 . 154 75 4 62 . Thermal 142 | 6 11 9 22 39 . 55 . . . . Explosive . | . . . . . . . . . . . Electromagnetic . | . . . . . . . . . . . Robot Hit Streak 31 | 5 3 5 9 6 . 19 28 31 17 . Robot Miss Streak 9 | 1 5 2 3 4 . 4 9 . 3 . Penetration Max 1 | . . . . 1 . . 1 . 1 . Secondary Targets 3 | . . 1 . . . . . . 2 . Max Gunslinging Chain 1 | . . 1 . . . . . . 1 . Shots Hit Robots 414 | 9 10 12 37 91 . 137 64 3 51 . Core Hits 209 | 3 4 6 11 38 . 72 50 2 23 . Critical Kills 3 | . . . . 1 . . 2 . . . Critical Parts Destroyed 4 | . . . . . . . 3 . 1 . Critical Strikes 24 | . . . . 6 . 11 5 . 2 . Meltdown 1 | . . . . 1 . . . . . . Destroy 6 | . . . . . . . 5 . 1 . Blast 16 | . . . . 5 . 11 . . . . Impale 1 | . . . . . . . . . 1 . Melee Attacks 19 | . . . . 7 . 7 . . 5 . Impact . | . . . . . . . . . . . Slashing . | . . . . . . . . . . . Piercing 19 | . . . . 7 . 7 . . 5 . Sneak Attacks . | . . . . . . . . . . . Combat Hostiles . | . . . . . . . . . . . Follow-up Attacks . | . . . . . . . . . . . Damage Inflicted 9145 | 85 99 117 435 2277 . 3587 1387 63 1095 . Guns 4844 | 85 99 117 324 359 . 1498 1317 63 982 . Cannons 3990 | . . . 111 1790 . 2089 . . . . Explosions 61 | . . . . . . . 61 . . . Melee 241 | . . . . 128 . . . . 113 . Ramming 9 | . . . . . . . 9 . . . Kinetic 6777 | 41 34 53 257 1457 . 2573 1317 63 982 . Thermal 2118 | 44 65 64 178 692 . 1014 61 . . . Explosive . | . . . . . . . . . . . Electromagnetic . | . . . . . . . . . . . Impact . | . . . . . . . . . . . Slashing . | . . . . . . . . . . . Piercing 241 | . . . . 128 . . . . 113 . Highest Corruption 20 | . . . . . . 2 1 . 20 20 Average Corruption 3 | . . . . . . 2 1 . 9 20 Corruption Purged . | . . . . . . . . . . . Corruption Blocked . | . . . . . . . . . . . Effects 14 | . . . . . . 8 1 . 3 2 Message Errors 2 | . . . . . . . 1 . . 1 Matter Fused 3 | . . . . . . 2 . . . 1 Heat Flow Errors 2 | . . . . . . 1 . . 1 . Energy Discharges 6 | . . . . . . 5 . . 1 . Data Loss (minor) 1 | . . . . . . . . . 1 . Overload Shots . | . . . . . . . . . . . Overflow Damage 35 | . . . . 29 . 6 . . . . Projectiles 35 | . . . . 29 . 6 . . . . Explosions . | . . . . . . . . . . . Melee . | . . . . . . . . . . . Knockbacks 20 | . . . . 8 . 12 . . . . Impact . | . . . . . . . . . . . Kinetic 17 | . . . . 7 . 10 . . . . Secondary 3 | . . . . 1 . 2 . . . . Self-Inflicted Damage . | . . . . . . . . . . . Shots . | . . . . . . . . . . . Rammed . | . . . . . . . . . . . Targets Rammed 1 | . . . . . . . 1 . . . Kicked 1 | . . . . . . . 1 . . . Crushed . | . . . . . . . . . . . Highest Temperature 350 | 20 40 115 90 311 . 350 13 . 237 . Average Temperature 96 | 15 20 75 39 109 . 110 6 . 37 . Received Heat Transfer 2418 | . 24 75 90 495 . 663 585 . 486 . Effects 5 | . . . . 1 . 4 . . . . Energy Bleed 2 | . . . . 1 . 1 . . . . Interference 2 | . . . . . . 2 . . . . Matter Decay 1 | . . . . . . 1 . . . . Siege Activations . | . . . . . . . . . . . Martial Activations . | . . . . . . . . . . . Shielding Activations . | . . . . . . . . . . . Robots Disrupted . | . . . . . . . . . . . Combat Hostiles . | . . . . . . . . . . . Robots Corrupted . | . . . . . . . . . . . Combat Hostiles . | . . . . . . . . . . . Parts Fried . | . . . . . . . . . . . Impact Corruptions 1 | . . . . . . 1 . . . . Robots Melted 2 | . . . . 1 . 1 . . . . Combat Hostiles 2 | . . . . 1 . 1 . . . . Parts Melted 4 | . . . . 1 . 3 . . . . Heat Transferred 4008 | 100 150 150 298 925 . 2235 150 . . . Parts Sabotaged . | . . . . . . . . . . . Parts Stolen . | . . . . . . . . . . . Parts Stripped . | . . . . . . . . . . . Power Chain Reactions . | . . . . . . . . . . . Alert | -11 -10 -10 -10 -8 -7 -7 -6 -5 -5 -5 ------- Run | Yrd Mat Min Sub Mat Fac Gar Fac Fac Gar Ext Maximum Alert Level 5 | . . . . 1 . 5 3 2 1 . Low Security (%) 34 | 100 100 100 . 97 100 9 . . . 100 Level 1 10 | . . . . 2 . 10 . 6 100 . Level 2 9 | . . . . . . 17 1 93 . . Level 3 36 | . . . . . . 43 98 . . . Level 4 7 | . . . . . . 17 . . . . Level 5 1 | . . . . . . 2 . . . . High Security . | . . . . . . . . . . . Max Security . | . . . . . . . . . . . Peak Influence 1679 | 5 65 50 . 206 67 1679 896 422 387 147 Initial 881 | . . . . . 65 46 881 422 277 147 Average 548 | 1 13 11 . 85 61 818 810 411 320 139 Influence Increases 3637 | 10 72 50 . 642 12 1933 628 5 285 . Destroy 0b10 Robot/C 1820 | . 40 40 . 460 . 740 340 . 200 . Destroy 0b10 Robot/NC 70 | 10 5 . . 10 . 5 35 5 . . Destroy Leader 298 | . 12 10 . 122 . 50 84 . 20 . Allied During Kill 65 | . . . . . . 32 33 . . . Successful Hack 25 | . . . . 7 12 6 . . . . Disable Machine 90 | . . . . . . 30 60 . . . Anti-Garrison Action 800 | . . . . . . 800 . . . . Destroy Structure 169 | . . . . 43 . 75 46 . 5 . Partial Spotted 15 | . . . . . . 15 . . . . Lose Combat Pursuer 285 | . 15 . . . . 180 30 . 60 . Influence Decreases 3510 | 10 72 50 . 496 91 321 1444 471 400 155 Entered New Map 1596 | . . . . . 81 21 798 441 120 135 Time Decay 1004 | 10 72 50 . 396 10 . 416 30 . 20 Lost Part 770 | . . . . 100 . 220 170 . 280 . Lost Ally 140 | . . . . . . 80 60 . . . Squads Dispatched 8 | . 1 . . 4 . . 3 . . . Investigation 1 | . . . . 1 . . . . . . Extermination 1 | . . . . . . . 1 . . . Reinforcement 6 | . 1 . . 3 . . 2 . . . Assault . | . . . . . . . . . . . Garrison . | . . . . . . . . . . . Intercept . | . . . . . . . . . . . Searches Triggered . | . . . . . . . . . . . Construction Impeded 1 | . . . . . . . 1 . . . Haulers Reinforced . | . . . . . . . . . . . Active Scanning Responses . | . . . . . . . . . . . Cargo Convoy Interrupts . | . . . . . . . . . . . Stealth | -11 -10 -10 -10 -8 -7 -7 -6 -5 -5 -5 --------- Run | Yrd Mat Min Sub Mat Fac Gar Fac Fac Gar Ext Distress Signals 6 | . 1 . . . . 4 1 . . . Communications Jammed . | . . . . . . . . . . . Distress Signals . | . . . . . . . . . . . Times Spotted 134 | . 10 2 7 31 . 45 22 1 16 . Peak Tracking Total 9 | . 5 2 2 5 . 6 7 1 9 . Tactical Retreats 13 | . 1 . . . . 8 1 . 3 . Traps | -11 -10 -10 -10 -8 -7 -7 -6 -5 -5 -5 ------- Run | Yrd Mat Min Sub Mat Fac Gar Fac Fac Gar Ext Traps Triggered 14 | . . . . . . 8 . 1 4 1 Indirectly . | . . . . . . . . . . . Trap Hack Attempts . | . . . . . . . . . . . Triggered . | . . . . . . . . . . . Disarmed . | . . . . . . . . . . . Reprogrammed . | . . . . . . . . . . . Reused . | . . . . . . . . . . . Traps Extracted . | . . . . . . . . . . . Installed . | . . . . . . . . . . . Triggered . | . . . . . . . . . . . Machines | -11 -10 -10 -10 -8 -7 -7 -6 -5 -5 -5 ---------- Run | Yrd Mat Min Sub Mat Fac Gar Fac Fac Gar Ext Machines Disabled 11 | . . . 1 . . 6 4 . . . Max in Single Turn 2 | . . . 1 . . 1 2 . . . Garrison Relay 4 | . . . . . . 4 . . . . Machines Repaired . | . . . . . . . . . . . Machines Dismantled . | . . . . . . . . . . . Machines Sabotaged . | . . . . . . . . . . . Overloaded Fab Kills . | . . . . . . . . . . . Hacking | -11 -10 -10 -10 -8 -7 -7 -6 -5 -5 -5 --------- Run | Yrd Mat Min Sub Mat Fac Gar Fac Fac Gar Ext Machines Accessed 10 | . . . 1 6 1 1 . 1 . . Terminals 7 | . . . . 6 . 1 . . . . Fabricators . | . . . . . . . . . . . Repair Stations . | . . . . . . . . . . . Recycling Units . | . . . . . . . . . . . Scanalyzers . | . . . . . . . . . . . Garrison Access 2 | . . . . . 1 . . 1 . . Total Hacks 39 | . . . 9 24 2 3 . 1 . . Successful 16 | . . . 9 4 1 1 . 1 . . Failed 23 | . . . . 20 1 2 . . . . Catastrophic 7 | . . . . 7 . . . . . . Database Lockouts . | . . . . . . . . . . . Manual 22 | . . . . 22 . . . . . . Terminals 27 | . . . . 24 . 3 . . . . Fabricators . | . . . . . . . . . . . Repair Stations . | . . . . . . . . . . . Recycling Units . | . . . . . . . . . . . Scanalyzers . | . . . . . . . . . . . Garrison Access 3 | . . . . . 2 . . 1 . . Terminal Hacks 14 | . . . 9 4 . 1 . . . . Record 8 | . . . 8 . . . . . . . Open Door 1 | . . . . . . 1 . . . . Terminal Index 1 | . . . . 1 . . . . . . Garrison Status 1 | . . . . 1 . . . . . . Recall Reinforcements 1 | . . . . 1 . . . . . . Zone Layout 1 | . . . . 1 . . . . . . Proto ID Catalog 1 | . . . 1 . . . . . . . Fabricator Hacks . | . . . . . . . . . . . Repair Station Hacks . | . . . . . . . . . . . Recycling Unit Hacks . | . . . . . . . . . . . Scanalyzer . | . . . . . . . . . . . Garrison Access Hacks 2 | . . . . . 1 . . 1 . . Unlock Access 2 | . . . . . 1 . . 1 . . Unauthorized Hacks . | . . . . . . . . . . . Terminals . | . . . . . . . . . . . Fabricators . | . . . . . . . . . . . Repair Stations . | . . . . . . . . . . . Recycling Units . | . . . . . . . . . . . Scanalyzers . | . . . . . . . . . . . Garrison Access . | . . . . . . . . . . . Data Cores Recovered . | . . . . . . . . . . . Used . | . . . . . . . . . . . Hacking Detections 8 | . . . . 6 1 1 . . . . Full Trace Events 1 | . . . . 1 . . . . . . Feedback Events . | . . . . . . . . . . . Feedback Blocked . | . . . . . . . . . . . Robot Schematics Acquired . | . . . . . . . . . . . Robots Built . | . . . . . . . . . . . Authchips . | . . . . . . . . . . . Time . | . . . . . . . . . . . Total Robot Build Rating . | . . . . . . . . . . . Part Schematics Acquired . | . . . . . . . . . . . Parts Built . | . . . . . . . . . . . Authchips . | . . . . . . . . . . . Time . | . . . . . . . . . . . Total Part Build Rating . | . . . . . . . . . . . Parts Repaired . | . . . . . . . . . . . Time . | . . . . . . . . . . . Parts Recycled . | . . . . . . . . . . . Recycled Matter . | . . . . . . . . . . . Retrieved Matter . | . . . . . . . . . . . Retrieved Components . | . . . . . . . . . . . Parts Scanalyzed . | . . . . . . . . . . . Part Schematics Acquired . | . . . . . . . . . . . Parts Damaged . | . . . . . . . . . . . Bothacking | -11 -10 -10 -10 -8 -7 -7 -6 -5 -5 -5 ------------ Run | Yrd Mat Min Sub Mat Fac Gar Fac Fac Gar Ext Used RIF Installer 1 | . . . . . . 1 . . . . Robots Hacked . | . . . . . . . . . . . Non-combat . | . . . . . . . . . . . Combat . | . . . . . . . . . . . Robot Hacks Applied . | . . . . . . . . . . . Relay Couplers Released 16 | . . . . . . 16 . . . . Machine Destruction 16 | . . . . . . 16 . . . . Attached 6 | . . . . . . . . . 6 . Fabnet Peak Effective % . | . . . . . . . . . . . Robots Rewired 6 | . . . . . . 6 . . . . Allies Hacked . | . . . . . . . . . . . Hacks Repelled . | . . . . . . . . . . . Allies | -11 -10 -10 -10 -8 -7 -7 -6 -5 -5 -5 -------- Run | Yrd Mat Min Sub Mat Fac Gar Fac Fac Gar Ext Total Allies 8 | . . . . . . 8 . . . . Largest Group 4 | . . . . . . 4 4 . . . Highest-Rated Group 122 | . . . . . . 122 84 . . . Highest-Rated Ally 40 | . . . . . . 40 21 . . . Total Orders . | . . . . . . . . . . . Ally Attacks 63 | . . . . . . 30 33 . . . Total Damage 1998 | . . . . . . 714 1284 . . . Kills 16 | . . . . . . 7 9 . . . Allies Corrupted . | . . . . . . . . . . . Allies Melted . | . . . . . . . . . . . Intel | -11 -10 -10 -10 -8 -7 -7 -6 -5 -5 -5 ------- Run | Yrd Mat Min Sub Mat Fac Gar Fac Fac Gar Ext Active Infowar (turns) 2874 | 16 333 206 241 336 . 1022 719 . . 1 Optics 216 | . . . 216 . . . . . . . Terrain 733 | 16 333 206 25 . . . 153 . . . Cloaking 1 | . . . . . . . . . . 1 Jamming 1741 | . . . . . . 1022 719 . . . ECM 336 | . . . . 336 . . . . . . Robot Analysis Total . | . . . . . . . . . . . Derelict Logs Recovered 1 | . . . 1 . . . . . . . Drone Launches . | . . . . . . . . . . . Drone Recoveries . | . . . . . . . . . . . Exploration | -11 -10 -10 -10 -8 -7 -7 -6 -5 -5 -5 ------------- Run | Yrd Mat Min Sub Mat Fac Gar Fac Fac Gar Ext Turns Passed 6573 | 87 333 206 723 1105 39 2617 1018 64 336 45 Spaces Moved 3157 | 44 176 75 361 532 20 1167 475 48 203 56 Core 139 | 4 . . . . . . 3 . 76 56 Treads 290 | 26 176 75 10 . . . 3 . . . Legs 1978 | . . . 198 532 20 850 375 . 3 . Wheels 750 | 14 . . 153 . . 317 94 48 124 . Hover . | . . . . . . . . . . . Flight . | . . . . . . . . . . . Fastest Speed 50 | 50 160 240 107 110 186 103 95 95 50 50 Average Speed 164 | 124 167 240 163 154 186 181 174 108 83 50 Slowest Speed 305 | 160 240 240 240 200 186 260 305 110 190 50 Overloaded Moves . | . . . . . . . . . . . Propulsion Burnouts . | . . . . . . . . . . . Robots Hopped . | . . . . . . . . . . . Potential Cave-ins . | . . . . . . . . . . . Cave-ins Triggered . | . . . . . . . . . . . Exploration Rate (%) 24 | 3 29 21 22 49 1 77 13 2 33 15 Regions Visited 10 Branch Regions 3 Pre-discovered Areas 1 | . . . 1 . . . . . . . Known Exits Taken 2 | . . . . . 1 . . 1 . . Unknown Exits Taken 6 | 1 1 1 1 1 . . 1 . . . Scrap Searched 2 | . . . 2 . . . . . . . Spaces Dug 2 | . . . . 2 . . . . . . Terrain Destroyed 93 | . . . 2 44 . 5 39 . 3 . Melee . | . . . . . . . . . . . Projectile 56 | . . . 2 44 . 5 2 . 3 . AOE 37 | . . . . . . . 37 . . . Terrain Rammed . | . . . . . . . . . . . Walls Destroyed . | . . . . . . . . . . . Machines Disabled . | . . . . . . . . . . . Actions | -11 -10 -10 -10 -8 -7 -7 -6 -5 -5 -5 --------- Run | Yrd Mat Min Sub Mat Fac Gar Fac Fac Gar Ext Total 3924 | 62 195 86 437 673 22 1430 591 54 302 72 Wait 45 | . . 3 1 15 . 19 6 . 1 . Move 3148 | 43 175 74 360 531 19 1166 474 48 202 56 Hop . | . . . . . . . . . . . Pick Up 68 | 2 4 . 7 13 . 22 14 . 6 . Fast Attach 54 | 9 . . 7 9 1 13 9 4 1 1 Attach 69 | . . . 7 12 1 16 20 . 13 . Detach 27 | 2 . . 8 6 . 4 7 . . . Swap 15 | . 2 . 3 2 . 3 4 . 1 . Drop 32 | . 3 . 7 5 1 4 9 . 3 . Fire 342 | 6 11 9 37 73 . 119 47 2 38 . Melee 19 | . . . . 7 . 7 . . 5 . Ram . | . . . . . . . . . . . Kick 1 | . . . . . . . 1 . . . Crush . | . . . . . . . . . . . Escape Stasis 83 | . . . . . . 36 . . 32 15 Rewire 21 | . . . . . . 21 . . . . Trap . | . . . . . . . . . . . Miscellaneous . | . . . . . . . . . . . Route ------- -11/Scrapyard -10/Materials -10/Mines -10/Subcaves -8/Materials (discovered 2 exits: *Fac x2) -7/Factory (discovered 2 exits: [*Sto] / Gar) -7/Garrison (discovered 3 exits: [*Fac x3]) -6/Factory (discovered 2 exits: *Fac x2) -5/Factory -5/Garrison -5/Extension History --------- Turn | Location | Event 14 | -11/Scrapyard | Discovered new exit (range 15) 88 | -11/Scrapyard | Entered Materials 319 | -10/Materials | Build established: Mutant 378 | -10/Materials | Discovered new exit (range 10) 421 | -10/Materials | Entered Mines 443 | -10/Mines | Met a Derelict bent on vengeance 606 | -10/Mines | Discovered new exit (range 10) 627 | -10/Mines | Entered Subcaves 643 | -10/Subcaves | Shifting Twisted Machinery released Mak. System Shield 695 | -10/Subcaves | Learned Materials stockpile data 699 | -10/Subcaves | Learned location of Zion (-6) 699 | -10/Subcaves | Met a Zionite searching for "candidates" 824 | -10/Subcaves | Core integrity fell below 50% 852 | -10/Subcaves | Lost 4 parts (1p1n2w) 912 | -10/Subcaves | Visited 4L-MR0's lab 925 | -10/Subcaves | Found Cargo Legs 933 | -10/Subcaves | Attached Cargo Legs, gained temporary slots: Utility x2 1330 | -10/Subcaves | Discovered new exit (range 11) 1350 | -10/Subcaves | Entered Materials 1350 | -8/Materials | Evolved 4 slots: Power x1, Propulsion x1, Utility x2 1639 | -8/Materials | Lost 4 parts (1p1n2w) 1758 | -8/Materials | Discovered new exit (range 4) 1770 | -8/Materials | Core integrity fell below 50% 1816 | -8/Materials | Lost 4 parts (2p1n1w) 2107 | -8/Materials | Build established: Scavenger-Mutant 2406 | -8/Materials | Discovered new exit (range 4) 2413 | -8/Materials | Build established: Hacker-Mutant 2455 | -8/Materials | Entered Factory 2455 | -7/Factory | Evolved 2 slots: Utility x2 2455 | -7/Factory | Discovered new exit (range 13) 2490 | -7/Factory | Identified exit to Garrison 2494 | -7/Factory | Entered Garrison 2574 | -7/Garrison | Triggered checkpoint 2646 | -7/Garrison | Triggered checkpoint 3002 | -7/Garrison | Triggered checkpoint 3118 | -7/Garrison | Triggered checkpoint 3131 | -7/Garrison | Discovered new exit (range 10) 3277 | -7/Garrison | Installed Relay Interface Framework 3403 | -7/Garrison | Garrison Relay disabled 3405 | -7/Garrison | Build established: Scavenger-Mutant 3481 | -7/Garrison | Rescued a captive Derelict 3481 | -7/Garrison | Rescued a captive Derelict 3846 | -7/Garrison | Triggered checkpoint 3888 | -7/Garrison | Garrison Relay disabled 3927 | -7/Garrison | Heavy support dispatched to Factory 3950 | -7/Garrison | Triggered checkpoint 3989 | -7/Garrison | Discovered new exit (range 14) 4089 | -7/Garrison | Lost 4 parts (2p1n1u) 4480 | -7/Garrison | Garrison Relay disabled 4554 | -7/Garrison | Triggered checkpoint 4582 | -7/Garrison | Triggered checkpoint 4621 | -7/Garrison | Garrison Relay disabled 4737 | -7/Garrison | Discovered new exit (range 10) 4786 | -7/Garrison | Core integrity fell below 50% 4890 | -7/Garrison | Triggered checkpoint 5111 | -7/Garrison | Entered Factory 5111 | -6/Factory | Accompanied by 4 allies 5111 | -6/Factory | Evolved 2 slots: Utility x2 5185 | -6/Factory | Discovered new exit (range 10) 5987 | -6/Factory | Core integrity fell below 50% 5994 | -6/Factory | Lost 8 parts (2p4n2w) 6115 | -6/Factory | Discovered new exit (range 12) 6129 | -6/Factory | Entered another Factory area 6129 | -5/Factory | Evolved 2 slots: Propulsion x1, Utility x1 6193 | -5/Factory | Identified exit to Garrison 6193 | -5/Factory | Entered Garrison 6261 | -5/Garrison | Triggered checkpoint 6311 | -5/Garrison | Triggered checkpoint 6381 | -5/Garrison | Spotted B-75 Beast 6462 | -5/Garrison | Core integrity fell below 50% 6484 | -5/Garrison | Core integrity fell below 20% 6487 | -5/Garrison | System corruption reached 10% 6507 | -5/Garrison | Triggered checkpoint 6519 | -5/Garrison | Triggered checkpoint 6523 | -5/Garrison | Lost 28 parts (4p7n12u5w) 6525 | -5/Garrison | Discovered new exit (range 9) 6529 | -5/Garrison | Entered Extension 6574 | -5/Extension | Self-destructed Last Messages --------------- area. 06546_ Field strength at 94. 06546_ Field strength at 88. 06547_ Field strength at 82. 06548_ Field strength at 76. 06549_ Field strength at 70. 06550_ Field strength at 64. 06551_ Field strength at 58. 06552_ Field strength at 52. 06553_ Field strength at 46. 06554_ Field strength at 40. 06555_ Field strength at 34. 06556_ Field strength at 28. 06557_ Field strength at 22. 06558_ Field strength at 16. 06559_ Field strength at 10. 06560_ System corrupted: Matter fused (-10). 06560_ Field strength at 4. 06561_ Stasis field depleted. 06563_ Acquired Cloaking Device. Map ----- +----------------------------------------------------+ | | | | | | | | | | | | | | | | | | | | | | | | | | | | | | | | | | | | | | | | | | | ???????????????????????????????????????????????? | | ?????????????????#####################?????????? | | ??###########????# ????????? | | ??# T !!! #????# ????????? | | ??# / ! ! #????# @ ????????? | | ??# !!! ###### ????????? | | ??#] # ????????? | | ??####+###### ?????????? | | ????# ##### ?????????? | | ????# R ??????????? | | ????# ######### ### ??????????? | | ????## ##???????# #?? ??????????? | | ?????# #????????# #??? ???????????? | | ?????# #????????# #???? ####???????????? | | ?????# #????????# #????? #??????????????? | | ?????# #????????# #????? #??????????????? | | ?????# #????????# #??????#??????????????? | | ?????# #????????##########?????????????????????? | | ?????# #???????????????????????????????????????? | | ?????# #???????????????????????????????????????? | | ?????# #???????????????????????????????????????? | | ?????# #???????????????????????????????????????? | | ?????# #???????????????????????????????????????? | | ?????# #???????????????????????????????????????? | | ?????# #???????????????????????????????????????? | | ?????# #???????????????????????????????????????? | | ?????# #???????????????????????????????????????? | | ?????# #???????????????????????????????????????? | | ?????# #???????????????????????????????????????? | +----------------------------------------------------+ Best States ------------- Heat Dissipation 62 Coolant Potential 50 Energy Generation 29 Energy Capacity 350 Matter Stores 300 Matter Capacity 300 Sight Range 21 Terrain Scan Range 16 Terrain Scan Density 210 ECM Strength 1 Jamming Range 12 Additional Mass Support 9 Armor Coverage 375 Resistance: KI 20 Evasion (%) 55 Targeting Accuracy 16 Target Analysis 5 Core Analysis 6 Recoil Reduction 2 Offensive Hacking 10 Defensive Hacking 11 Relay Coupler Types 3 Relay Coupler Value 115 Item Schematics ----------------- None Robot Schematics ------------------ None Fabricated ------------ Nothing Repaired ---------- Nothing Alien Tech Used ----------------- None Achievements -------------- None Challenges ------------ None Game ------ Seed DisruptionPhaseManipulator Manual? 0 Play Time 00:47:42 Cumulative 101.5 hours Start 2025.05.28 @ 21:38:09 End 2025.05.28 @ 22:26:02 Sessions 1 Manual Loads 0 Difficulty Rogue Special Mode None Game No. 197 Rogue 197 Adventurer 0 Explorer 0 Win Type - Total 0 Types 0/0/0/0/0/0/0/0/0/0 Lore% 26 Gallery% 43 Achievement% 34 Wizard Run 0 Options --------- Layout 1 ASCII 0 Keyboard 1 Movement Arrows Keybinds 0 Fullscreen 2 Font 24/Smallcaps Map View 50x35 Zoom Use 0% Tactical HUD 1 Map Filters NONE Filters NONE Steam 1 RUN: 27ecaed6-2689-45e5-86a6-979915c8b4bf